bitfinex/quotes_SOLUSD_20241113
["timestamp","ask_amount","ask_price","bid_price","bid_amount"]
[1731480938833,23.18220991,203.1,203.04,23.776884]
[1731480939029,23.18220991,203.12,203.04,23.776884]
[1731480939472,23.18220991,203.1,203.04,23.776884]
[1731480939743,23.18220991,203.14,203.07,23.18220991]
[1731480939943,4.9218,203.18,203.11,17.232]
[1731480939944,23.18220991,203.18,203.11,17.232]
[1731480940125,23.18220991,203.18,203.11,40.41420991]
[1731480940548,23.18220991,203.18,203.12,23.776884]
[1731480940726,19.679834,203.23,203.12,23.776884]
[1731480940727,23.18220991,203.2,203.12,23.776884]
[1731480940927,23.18220991,203.2,203.12,46.95909391]
[1731480941830,23.18220991,203.24,203.16,23.18220991]
[1731480942034,23.18220991,203.26,203.18,23.18220991]
[1731480942340,20.624,203.32,203.18,23.18220991]
[1731480942341,23.18220991,203.32,203.24,23.18220991]
[1731480942646,23.18220991,203.32,203.25,23.776884]
[1731480943025,23.18220991,203.34,203.27,23.776884]
[1731480943426,23.18220991,203.34,203.26,23.18220991]
[1731480943848,23.18220991,203.34,203.27,23.776884]
[1731480944263,23.18220991,203.34,203.28,17.2176]
[1731480944550,23.18220991,203.36,203.29,23.776884]
[1731480945126,23.18220991,203.34,203.28,17.2176]
[1731480945326,23.18220991,203.34,203.28,12.2983]
[1731480946427,23.18220991,203.34,203.29,20.0]
[1731480946628,23.18220991,203.39,203.3,23.18220991]
[1731480947030,23.18220991,203.39,203.31,23.776884]
[1731480947441,23.18220991,203.37,203.31,23.776884]
[1731480947644,23.18220991,203.37,203.31,28.695284]
[1731480947838,23.18220991,203.37,203.31,40.991684]
[1731480949145,4.916,203.42,203.25,12.2995]
[1731480949146,23.18220991,203.35,203.25,12.2995]
[1731480949328,23.18220991,203.32,203.25,17.2194]
[1731480949525,23.18220991,203.34,203.26,23.18220991]
[1731480949727,4.9166,203.39,203.26,23.18220991]
[1731480949728,23.18220991,203.36,203.26,23.18220991]
[1731480950450,0.1,203.46,203.3,23.18220991]
[1731480950451,23.18220991,203.38,203.3,23.18220991]
[1731480950951,23.18220991,203.4,203.31,23.776884]
[1731480951153,23.18220991,203.36,203.29,17.2167]
[1731480951451,23.18220991,203.36,203.3,23.776884]
[1731480952031,23.18220991,203.36,203.29,17.2167]
[1731480952447,23.18220991,203.36,203.29,12.2977]
[1731480952630,23.18220991,203.34,203.29,12.2977]
[1731480952947,23.18220991,203.32,203.25,4.9199]
[1731480953332,23.18220991,203.32,203.25,17.22]
[1731480954551,23.18220991,203.3,203.25,17.22]
[1731480954950,23.18220991,203.34,203.26,23.776884]
[1731480955539,23.18220991,203.34,203.26,28.696484]
[1731480955750,23.18220991,203.34,203.26,40.995984]
[1731480956856,24.9164,203.4,203.28,23.18220991]
[1731480957055,23.18220991,203.38,203.29,23.776884]
[1731480957246,23.18220991,203.38,203.3,23.18220991]
[1731480957948,23.18220991,203.38,203.31,4.9185]
[1731480958450,23.18220991,203.38,203.31,17.2149]
[1731480959555,23.18220991,203.4,203.32,23.776884]
[1731480959756,23.18220991,203.4,203.32,46.95909391]
[1731480959940,23.18220991,203.4,203.33,17.2133]
[1731480961242,23.18220991,203.42,203.34,46.95909391]
[1731480962057,23.18220991,203.42,203.35,17.2116]
[1731480962435,23.18220991,203.44,203.36,23.776884]
[1731480963263,23.18220991,203.42,203.35,17.2116]
[1731480963759,23.18220991,203.39,203.32,12.5882]
[1731480963948,23.18220991,203.39,203.32,24.884]
[1731480964561,28.09890991,203.39,203.32,12.2958]
[1731480964746,28.09890991,203.39,203.32,17.2141]
[1731480964946,23.18220991,203.35,203.28,12.2982]
[1731480965157,23.18220991,203.35,203.2,43.5103]
[1731480965158,23.18220991,203.33,203.23,35.48290991]
[1731480965463,23.18220991,203.33,203.25,23.18220991]
[1731480965634,23.18220991,203.33,203.24,17.2208]
[1731480966151,10.0,204.76,203.24,17.2208]
[1731480966152,4.9147,203.47,203.36,162.0]
[1731480966351,23.18220991,203.45,203.36,40.39270991]
[1731480966741,23.18220991,203.43,203.36,12.2934]
[1731480967059,23.18220991,203.43,203.36,17.2107]
[1731480967952,23.18220991,203.45,203.36,17.2107]
[1731480968838,42.83670591,203.5,203.36,12.2934]
[1731480968839,23.18220991,203.43,203.36,12.2934]
[1731480969050,23.18220991,203.37,203.28,23.18220991]
[1731480969239,23.18220991,203.31,203.23,4.9204]
[1731480969547,161.4,203.44,203.26,23.18220991]
[1731480969548,23.18220991,203.37,203.26,23.18220991]
[1731480969745,23.876884,203.44,203.29,23.18220991]
[1731480969963,23.18220991,203.38,203.29,23.18220991]
[1731480970465,23.18220991,203.4,203.31,23.18220991]
[1731480970665,23.18220991,203.38,203.23,24.9204]
[1731480970846,23.18220991,203.38,203.3,17.2158]
[1731480971360,23.18220991,203.36,203.3,17.2158]
[1731480971858,19.654496,203.5,203.35,52.123084]
[1731480972054,23.18220991,203.54,203.44,23.18220991]
[1731480972457,23.18220991,203.52,203.44,23.18220991]
[1731480972756,37.63871202,203.51,203.42,37.63871202]
[1731480972956,37.63871202,203.51,203.35,28.3462]
[1731480972957,37.63871202,203.53,203.44,37.63871202]
[1731480973341,37.63871202,203.49,203.4,37.63871202]
[1731480973554,37.63871202,203.47,203.38,37.63871202]
[1731480973766,37.83871202,203.48,203.37,37.63871202]
[1731480974059,37.83871202,203.46,203.35,37.63871202]
[1731480974268,37.63871202,203.44,203.31,4.9184]
[1731480974459,37.63871202,203.44,203.34,37.63871202]
[1731480975067,4.9156,203.43,203.34,37.63871202]
[1731480975662,37.63871202,203.42,203.34,37.63871202]
[1731480976058,37.63871202,203.42,203.3,19.9176]
[1731480976059,4.9161,203.41,203.32,37.63871202]
[1731480976263,37.73871202,203.4,203.3,37.63871202]
[1731480976442,37.63871202,203.32,203.24,37.63871202]
[1731480977354,37.73871202,203.3,203.2,37.63871202]
[1731480977561,0.1,203.24,203.18,37.63871202]
[1731480977860,37.63871202,203.22,203.14,37.63871202]
[1731480978174,4.921,203.21,203.16,37.63871202]
[1731480978339,4.9206,203.23,203.16,37.63871202]
[1731480978746,37.63871202,203.22,203.14,37.63871202]
[1731480979269,5.0206,203.23,203.16,37.63871202]
[1731480980245,4.9201,203.25,203.18,37.63871202]
[1731480981269,4.9195,203.27,203.2,37.63871202]
[1731480981465,4.9191,203.29,203.22,37.63871202]
[1731480981846,4.9191,203.29,203.2,37.63871202]
[1731480983653,4.9191,203.29,203.15,312.0]
[1731480983654,37.63871202,203.26,203.18,37.63871202]
[1731480983860,37.63871202,203.24,203.16,37.63871202]
[1731480984164,37.63871202,203.2,203.1,37.63871202]
[1731480984373,23.776884,203.23,203.1,37.63871202]
[1731480984374,37.63871202,203.18,203.1,37.63871202]
[1731480984568,37.63871202,203.2,203.12,37.63871202]
[1731480984869,37.63871202,203.22,203.14,37.63871202]
[1731480985246,37.63871202,203.22,203.09,17.2335]
[1731480985443,4.9219,203.17,203.09,37.63871202]
[1731480986246,19.7933,203.16,203.09,37.63871202]
[1731480986449,23.876884,203.08,202.9,42.56701202]
[1731480986665,37.63871202,203.0,202.9,37.63871202]
[1731480986851,37.63871202,202.96,202.89,12.3219]
[1731480987056,37.63871202,202.94,202.89,12.3219]
[1731480987346,37.63871202,202.94,202.88,0.5050531]
[1731480987676,37.63871202,202.98,202.89,42.56741202]
[1731480987854,37.63871202,202.98,202.89,4.9287]
[1731480988052,37.63871202,202.96,202.88,0.5050531]
[1731480988353,37.63871202,202.94,202.88,0.5050531]
[1731480988867,37.63871202,202.96,202.88,5.4337531]
[1731480989258,4.9261,203.0,202.88,5.4337531]
[1731480989259,37.63871202,202.98,202.89,37.63871202]
[1731480989468,37.63871202,202.98,202.9,4.9285]
[1731480990368,37.63871202,203.0,202.91,61.41559602]
[1731480991671,37.63871202,203.0,202.92,4.928]
[1731480992169,37.63871202,203.0,202.93,23.776884]
[1731480993279,37.63871202,203.0,202.93,28.704384]
[1731480994882,37.63871202,203.0,202.93,78.66259602]
[1731480995069,37.63871202,203.02,202.95,37.63871202]
[1731480995574,37.63871202,203.04,202.98,23.776884]
[1731480996677,37.63871202,203.02,202.94,7.6189]
[1731480996852,37.63871202,203.0,202.94,12.5464]
[1731480997185,37.63871202,203.0,202.94,24.8653]
[1731480997476,37.63871202,203.02,202.94,24.8653]
[1731480997677,37.63871202,203.04,202.95,37.63871202]
[1731480998380,37.63871202,203.04,202.97,37.63871202]
[1731480998587,37.63871202,203.06,202.98,23.776884]
[1731480998877,37.63871202,203.06,203.0,23.776884]
[1731480999080,37.63871202,203.08,203.0,23.776884]
[1731480999575,37.63871202,203.12,203.04,23.776884]
[1731480999777,37.63871202,203.12,203.05,37.63871202]
[1731481000385,37.63871202,203.14,203.05,37.63871202]
[1731481000682,37.63871202,203.14,203.06,4.9246]
[1731481001265,42.56151202,203.14,203.06,23.776884]
[1731481001669,37.63871202,203.12,203.04,12.3125]
[1731481002379,37.63871202,203.06,202.97,20.3458]
[1731481002580,37.63871202,203.06,202.97,62.91111202]
[1731481002767,37.63871202,203.06,202.97,75.22811202]
[1731481002967,42.56341202,203.06,202.97,75.22811202]
[1731481003298,37.63871202,203.08,202.99,37.63871202]
[1731481003580,37.63871202,203.14,203.07,37.63871202]
[1731481004495,37.63871202,203.12,203.05,37.63871202]
[1731481004782,42.56191202,203.12,203.04,23.776884]
[1731481004984,37.63871202,203.1,203.01,49.95271202]
[1731481005286,37.63871202,203.1,203.01,54.87851202]
[1731481006486,4.9239,203.09,203.02,23.776884]
[1731481006883,37.63871202,203.1,203.03,37.63871202]
[1731481007266,42.56241202,203.1,203.03,37.63871202]
[1731481007982,42.56201202,203.12,203.03,349.63871202]
[1731481008859,4.9228,203.14,203.05,37.63871202]
[1731481009058,42.55991202,203.2,203.11,37.63871202]
[1731481009285,0.1,203.27,203.15,37.63871202]
[1731481009286,42.55951202,203.22,203.15,37.63871202]
[1731481009591,42.55951202,203.22,203.08,19.3265]
[1731481009592,42.55951202,203.22,203.13,37.63871202]
[1731481009767,37.63871202,203.2,203.12,23.776884]
[1731481010284,37.63871202,203.16,203.08,19.3265]
[1731481011265,42.56101202,203.16,203.08,24.2506]
[1731481011563,37.63871202,203.18,203.1,37.63871202]
[1731481011764,37.63871202,203.18,203.09,23.776884]
[1731481012063,37.63871202,203.18,203.09,335.776884]
[1731481012464,37.63871202,203.18,203.09,23.776884]
[1731481012683,37.63871202,203.2,203.13,23.776884]
[1731481013168,12.2988,203.28,203.14,37.63871202]
[1731481013169,37.63871202,203.22,203.14,37.63871202]
[1731481013368,37.63871202,203.22,203.15,4.9224]
[1731481013587,42.55951202,203.22,203.15,4.9224]
[1731481014188,42.55911202,203.24,203.15,17.2285]
[1731481014510,37.63871202,203.22,203.15,17.2285]
[1731481015582,37.63871202,203.22,203.16,23.776884]
[1731481016571,42.55911202,203.24,203.16,61.41559602]
[1731481016766,42.55831202,203.27,203.18,37.63871202]
[1731481017563,37.63871202,203.25,203.17,4.9218]
[1731481018585,42.55891202,203.25,203.17,4.9218]
[1731481018792,37.63871202,203.23,203.15,17.2285]
[1731481018964,37.63871202,203.23,203.15,12.3061]
[1731481019569,37.63871202,203.23,203.14,37.63871202]
[1731481020075,37.63871202,203.21,203.12,37.63871202]
[1731481020265,37.63871202,203.19,203.11,4.9233]
[1731481020776,4.9215,203.19,203.11,28.15837147]
[1731481021085,23.23507147,203.18,203.08,19.3265]
[1731481021294,23.23507147,203.16,203.07,31.40607147]
[1731481021465,23.23507147,203.16,203.07,36.33037147]
[1731481021666,23.23507147,203.16,203.07,48.64137147]
[1731481022086,23.23507147,203.16,203.07,43.71707147]
[1731481022389,23.23507147,203.16,203.07,48.64147147]
[1731481023285,23.23507147,203.2,203.11,23.23507147]
[1731481023488,23.23507147,203.18,203.1,23.776884]
[1731481024392,23.23507147,203.18,203.09,23.23507147]
[1731481024593,23.23507147,203.16,203.07,48.64147147]
[1731481024891,23.23507147,203.12,203.07,12.311]
[1731481025282,23.23507147,203.12,203.03,23.23507147]
[1731481025283,23.23507147,203.12,203.04,4.9251]
[1731481025489,28.15827147,203.12,203.03,35.54837147]
[1731481025796,4.9232,203.12,203.03,40.47367147]
[1731481025978,4.9232,203.12,203.05,23.23507147]
[1731481026178,4.9232,203.12,203.06,312.0]
[1731481027486,28.15827147,203.12,203.06,312.0]
[1731481027689,28.15827147,203.12,203.03,40.47367147]
[1731481029289,28.15827147,203.12,203.03,17.2386]
[1731481030674,23.23507147,203.08,203.03,312.0]
[1731481030876,23.23507147,203.08,202.99,40.47697147]
[1731481031780,23.23507147,203.1,203.01,23.23507147]
[1731481031973,23.23507147,203.14,203.03,23.23507147]
[1731481032380,23.23507147,203.12,203.03,23.23507147]
[1731481032579,23.23507147,203.12,203.02,41.016484]
[1731481032580,23.23507147,203.1,203.02,17.2396]
[1731481033671,28.15867147,203.1,203.02,17.2396]
[1731481033879,23.23507147,203.12,203.05,312.0]
[1731481034187,23.23507147,203.14,203.05,312.0]
[1731481034385,23.23507147,203.14,203.04,23.776884]
[1731481035202,4.9229,203.13,203.05,4.9248]
[1731481035402,4.9229,203.13,203.05,17.237]
[1731481035584,23.23507147,203.14,203.05,40.47207147]
[1731481035780,4.9221,203.17,203.09,23.23507147]
[1731481036677,4.9221,203.17,203.09,28.15877147]
[1731481037301,4.9221,203.17,203.1,312.0]
[1731481037500,23.23507147,203.16,203.1,312.0]
[1731481037692,23.23507147,203.12,203.05,4.9246]
[1731481037900,23.23507147,203.12,203.05,17.2366]
[1731481038778,4.9234,203.11,203.05,17.2366]
[1731481038976,4.9234,203.11,203.03,28.16017147]
[1731481039185,4.9234,203.11,203.01,12.3145]
[1731481039186,23.23507147,203.06,202.97,23.23507147]
[1731481039390,23.23507147,203.04,202.95,23.23507147]
[1731481039598,23.23507147,203.02,202.93,40.48207147]
[1731481039783,23.23507147,202.96,202.87,4.9291]
[1731481039992,23.23507147,202.92,202.84,23.23507147]
[1731481040204,23.23507147,202.9,202.8,23.23507147]
[1731481040396,20.0,202.89,202.78,56.24437147]
[1731481040599,20.0,202.89,202.78,368.24437147]
[1731481040801,24.9287,202.89,202.78,368.24437147]
[1731481041000,25.0287,202.89,202.78,347.56357147]
[1731481041807,25.0287,202.89,202.74,8.134]
[1731481041808,25.0287,202.89,202.76,23.23507147]
[1731481042282,25.0287,202.89,202.76,28.16677147]
[1731481042489,25.0287,202.89,202.77,4.9314]
[1731481044706,25.0287,202.89,202.77,316.9314]
[1731481044888,23.23507147,202.9,202.82,23.23507147]
[1731481045218,28.16367147,202.9,202.8,28.16587147]
[1731481045506,0.1,202.89,202.75,23.23507147]
[1731481045689,0.1,202.89,202.74,13.0662]
[1731481046203,23.776884,202.87,202.67,8.7787531]
[1731481046501,23.23507147,202.77,202.68,28.29426147]
[1731481046806,23.23507147,202.73,202.68,0.12549]
[1731481047199,23.23507147,202.7,202.68,0.12549]
[1731481047987,23.23507147,202.72,202.68,0.12549]
[1731481048794,37.93372793,202.72,202.68,0.12549]
[1731481051102,42.86682793,202.72,202.68,0.12549]
[1731481052210,20.0,202.73,202.68,0.12549]
[1731481053212,24.9327,202.73,202.68,0.12549]
[1731481054010,37.93372793,202.7,202.68,0.12549]
[1731481054414,24.9327,202.73,202.68,0.12549]
[1731481054415,37.93372793,202.72,202.68,0.12549]
[1731481055093,37.93372793,202.72,202.58,2.26884297]
[1731481055094,0.1,202.66,202.58,2.26884297]
[1731481055302,37.93372793,202.6,202.46,45.81002793]
[1731481055495,37.93372793,202.56,202.47,312.5050531]
[1731481055720,37.93372793,202.54,202.47,312.5050531]
[1731481057202,42.87112793,202.54,202.47,312.5050531]
[1731481058224,37.93372793,202.52,202.47,0.5050531]
[1731481059296,42.87142793,202.52,202.47,0.5050531]
[1731481059727,0.1,202.48,202.47,0.5050531]
[1731481059927,101.20425586,202.52,202.3,37.93372793]
[1731481059928,37.93372793,202.4,202.3,37.93372793]
[1731481060105,37.93372793,202.38,202.3,37.93372793]
[1731481061200,37.93372793,202.38,202.3,349.93372793]
[1731481062025,37.93372793,202.4,202.32,37.93372793]
[1731481062706,37.93372793,202.38,202.31,17.3001]
[1731481063232,37.93372793,202.34,202.3,312.0]
[1731481063413,37.93372793,202.34,202.27,13.6136531]
[1731481063615,37.93372793,202.36,202.27,51.54738103]
[1731481063797,37.93372793,202.36,202.27,63.90708103]
[1731481066511,37.93372793,202.36,202.29,312.0]
[1731481067024,37.93372793,202.36,202.3,4.9431]
[1731481067226,37.93372793,202.36,202.29,312.0]
[1731481067526,42.87542793,202.36,202.29,312.0]
[1731481069023,37.93372793,202.34,202.29,312.0]
[1731481069539,37.93372793,202.32,202.27,21.0296531]
[1731481070120,37.93372793,202.3,202.27,8.6699531]
[1731481070331,37.93372793,202.28,202.27,0.5050531]
[1731481070807,23.4595395,202.28,202.27,0.5050531]
[1731481071223,28.4031395,202.28,202.27,0.5050531]
[1731481073507,28.4031395,202.28,202.16,316.9465]
[1731481073508,28.4031395,202.28,202.16,312.0]
[1731481073710,23.4595395,202.2,202.16,312.0]
[1731481074114,23.4595395,202.2,202.14,8.5409]
[1731481074321,23.4595395,202.2,202.16,4.9465]
[1731481074563,23.4595395,202.22,202.16,4.9465]
[1731481075143,23.4595395,202.24,202.17,23.776884]
[1731481076037,23.4595395,202.28,202.19,23.4595395]
[1731481076324,23.4595395,202.28,202.2,23.776884]
[1731481077113,28.4026395,202.3,202.21,40.7681395]
[1731481077512,28.4023395,202.32,202.23,23.4595395]
[1731481077708,7.8707,202.39,202.21,17.3086]
[1731481077709,23.4595395,202.35,202.26,23.4595395]
[1731481077907,23.4595395,202.33,202.24,47.2364235]
[1731481078324,23.4595395,202.35,202.26,23.4595395]
[1731481078921,23.4595395,202.35,202.27,23.776884]
[1731481079124,23.4595395,202.33,202.25,12.3603]
[1731481079707,28.4015395,202.35,202.26,23.4595395]
[1731481079912,23.4595395,202.37,202.28,23.4595395]
[1731481080237,23.4595395,202.39,202.3,23.4595395]
[1731481081310,23.4595395,202.37,202.29,12.3583]
[1731481081512,23.4595395,202.33,202.27,30.0854]
[1731481081829,4.9411,202.38,202.25,12.3608]
[1731481081830,23.4595395,202.31,202.25,12.3608]
[1731481082610,23.4595395,202.29,202.21,32.6986]
[1731481082812,23.4595395,202.27,202.21,20.3354]
[1731481083019,23.4595395,202.27,202.21,25.2806]
[1731481084536,4.9436,202.28,202.21,25.2806]
[1731481084734,23.4595395,202.27,202.21,25.2806]
[1731481085028,23.4595395,202.27,202.21,20.3354]
[1731481085534,4.9436,202.28,202.21,25.2806]
[1731481085717,4.9433,202.3,202.21,61.1034395]
[1731481085923,23.4595395,202.31,202.21,61.1034395]
[1731481086122,28.4024395,202.31,202.23,23.4595395]
[1731481086825,28.4020395,202.33,202.23,23.4595395]
[1731481087839,28.4020395,202.33,202.17,320.6733]
[1731481087840,23.4595395,202.26,202.18,17.3112]
[1731481088540,23.4595395,202.32,202.22,23.4595395]
[1731481088737,4.9425,202.33,202.24,23.4595395]
[1731481089226,4.942,202.35,202.26,23.4595395]
[1731481089943,23.4595395,202.36,202.25,23.776884]
[1731481089944,4.9418,202.36,202.29,8.7167]
[1731481090145,4.9406,202.41,202.34,23.4595395]
[1731481090335,23.4595395,202.43,202.34,23.4595395]
[1731481090721,0.85638865,202.47,202.3,47.2364235]
[1731481090722,23.4595395,202.39,202.3,47.2364235]
[1731481091143,23.4595395,202.39,202.3,23.4595395]
[1731481091438,23.4595395,202.33,202.24,32.1762395]
[1731481091651,23.4595395,202.33,202.24,49.4821395]
[1731481092725,23.4595395,202.35,202.24,49.4821395]
[1731481093540,23.4595395,202.33,202.24,49.4821395]
[1731481093723,4.9415,202.37,202.26,23.4595395]
[1731481094037,4.9415,202.37,202.24,26.0226]
[1731481094038,28.4010395,202.37,202.28,23.4595395]
[1731481095045,23.4595395,202.35,202.28,4.9436]
[1731481095547,28.4010395,202.37,202.28,28.4031395]
[1731481096122,28.4006395,202.39,202.3,23.4595395]
[1731481096438,23.4595395,202.41,202.32,23.4595395]
[1731481096642,28.4000395,202.41,202.32,23.4595395]
[1731481096836,23.4595395,202.41,202.32,23.4595395]
[1731481097040,23.4595395,202.41,202.33,17.2984]
[1731481097241,24.31592815,202.47,202.38,23.4595395]
[1731481097544,23.4595395,202.47,202.38,23.4595395]
[1731481097841,23.4595395,202.51,202.42,23.4595395]
[1731481098041,23.4595395,202.49,202.4,23.4595395]
[1731481098238,23.4595395,202.47,202.38,23.4595395]
[1731481098745,23.4595395,202.49,202.4,23.4595395]
[1731481098938,23.4595395,202.51,202.42,23.4595395]
[1731481099143,23.4595395,202.51,202.44,23.4595395]
[1731481099444,0.85621034,202.55,202.43,17.2898]
[1731481099445,28.3966395,202.55,202.46,23.4595395]
[1731481100141,23.4595395,202.53,202.44,23.4595395]
[1731481100551,23.4595395,202.53,202.46,23.4595395]
[1731481101041,28.3966395,202.55,202.46,23.4595395]
[1731481101252,23.4595395,202.55,202.46,40.7466395]
[1731481101443,23.4595395,202.57,202.5,23.4595395]
[1731481101642,4.9359,202.6,202.52,23.4595395]
[1731481102028,23.4595395,202.63,202.54,23.4595395]
[1731481102242,4.9349,202.64,202.56,23.4595395]
[1731481102630,23.4595395,202.65,202.56,23.4595395]
[1731481102830,23.4595395,202.63,202.54,23.4595395]
[1731481103027,23.4595395,202.59,202.5,23.4595395]
[1731481103251,23.4595395,202.57,202.48,28.3980395]
[1731481103437,23.4595395,202.59,202.5,23.4595395]
[1731481104930,23.4595395,202.59,202.48,17.2853]
[1731481104931,37.98037312,202.6,202.51,37.98037312]
[1731481105251,37.98037312,202.6,202.52,4.9377]
[1731481107248,37.98037312,202.58,202.49,37.98037312]
[1731481107748,42.91577312,202.62,202.53,37.98037312]
[1731481108255,37.98037312,202.6,202.53,37.98037312]
[1731481109060,37.98037312,202.6,202.53,42.91777312]
[1731481109363,37.98037312,202.58,202.49,12.3462]
[1731481109647,37.98037312,202.58,202.49,50.32657312]
[1731481109846,42.91627312,202.6,202.51,37.98037312]
[1731481110357,37.98037312,202.62,202.53,37.98037312]
[1731481110560,37.98037312,202.62,202.49,17.2845]
[1731481110561,37.98037312,202.62,202.55,37.98037312]
[1731481111252,37.98037312,202.62,202.55,42.91717312]
[1731481111850,37.98037312,202.62,202.55,37.98037312]
[1731481112074,37.98037312,202.62,202.54,12.3431]
[1731481112646,42.91587312,202.62,202.54,17.2803]
[1731481113661,42.91527312,202.64,202.55,37.98037312]
[1731481114031,37.98037312,202.62,202.54,55.26067312]
[1731481114234,42.91527312,202.64,202.56,37.98037312]
[1731481115156,42.91527312,202.64,202.56,42.91707312]
[1731481116261,42.91527312,202.64,202.56,37.98037312]
[1731481116765,37.98037312,202.62,202.54,37.98037312]
[1731481116937,37.98037312,202.6,202.51,42.91837312]
[1731481117133,37.98037312,202.6,202.51,55.26337312]
[1731481117454,37.98037312,202.62,202.53,37.98037312]
[1731481118441,37.98037312,202.61,202.52,37.98037312]
[1731481120160,37.98037312,202.61,202.47,29.0668]
[1731481120161,37.98037312,202.55,202.47,29.0668]
[1731481120366,55.25567312,202.6,202.47,8.1295]
[1731481120367,37.98037312,202.53,202.47,8.1295]
[1731481121057,37.98037312,202.55,202.47,8.1295]
[1731481121459,37.98037312,202.53,202.45,37.98037312]
[1731481121653,37.98037312,202.53,202.45,42.91977312]
[1731481121966,4.9377,202.52,202.45,42.91977312]
[1731481122339,37.98037312,202.53,202.45,42.91977312]
[1731481122340,4.937,202.56,202.49,37.98037312]
[1731481122749,4.937,202.56,202.47,37.98037312]
[1731481123154,37.98037312,202.55,202.47,37.98037312]
[1731481123571,37.98037312,202.51,202.43,37.98037312]
[1731481123861,37.98037312,202.53,202.45,37.98037312]
[1731481124062,42.91757312,202.55,202.45,37.98037312]
[1731481124262,42.91757312,202.55,202.47,37.98037312]
[1731481124469,37.98037312,202.59,202.51,37.98037312]
[1731481124963,37.98037312,202.61,202.53,37.98037312]
[1731481125147,42.91597312,202.61,202.53,37.98037312]
[1731481125351,12.4352,202.68,202.57,37.98037312]
[1731481125352,37.98037312,202.65,202.57,37.98037312]
[1731481125568,42.91507312,202.65,202.57,55.25827312]
[1731481126044,4.9347,202.65,202.59,37.98037312]
[1731481126241,42.91467312,202.67,202.59,37.98037312]
[1731481126444,42.91467312,202.67,202.59,46.44717312]
[1731481126859,4.9343,202.67,202.6,23.35186091]
[1731481127573,4.9343,202.67,202.6,28.28756091]
[1731481128365,0.85464056,202.73,202.62,23.35186091]
[1731481128366,4.9338,202.69,202.62,23.35186091]
[1731481128757,23.35186091,202.66,202.59,8.4668]
[1731481128955,0.85464056,202.73,202.59,8.4668]
[1731481128956,23.35186091,202.7,202.62,23.35186091]
[1731481129471,23.35186091,202.72,202.65,23.35186091]
[1731481129666,23.35186091,202.74,202.65,23.35186091]
[1731481130254,23.35186091,202.72,202.65,23.35186091]
[1731481130668,4.9321,202.75,202.65,23.35186091]
[1731481130878,23.35186091,202.73,202.65,23.35186091]
[1731481131365,4.9321,202.75,202.6,89.08314491]
[1731481131366,23.35186091,202.75,202.68,23.776884]
[1731481131553,28.28366091,202.77,202.69,28.28546091]
[1731481133754,28.28366091,202.77,202.69,23.35186091]
[1731481134454,28.28366091,202.77,202.69,28.28526091]
[1731481134664,25.80615255,202.77,202.69,28.28526091]
[1731481134863,23.35186091,202.77,202.69,28.28526091]
[1731481135570,23.35186091,202.77,202.69,23.35186091]
[1731481135772,23.35186091,202.77,202.6,20.1812]
[1731481135773,23.35186091,202.7,202.6,20.1812]
[1731481136069,23.35186091,202.7,202.55,12.3423]
[1731481136070,23.35186091,202.64,202.56,23.35186091]
[1731481136274,23.35186091,202.64,202.55,21.8263]
[1731481136460,23.35186091,202.64,202.56,23.35186091]
[1731481136667,23.35186091,202.66,202.56,23.35186091]
[1731481137376,23.35186091,202.64,202.56,23.35186091]
[1731481137775,4.9351,202.63,202.56,23.35186091]
[1731481139259,4.9351,202.63,202.56,28.28856091]
[1731481140277,4.9346,202.65,202.56,28.28856091]
[1731481143187,4.9346,202.65,202.6,23.35186091]
[1731481143364,44.642784,202.75,202.6,23.35186091]
[1731481143365,4.9333,202.71,202.65,23.776884]
[1731481143560,2.7271255,202.77,202.69,23.35186091]
[1731481144359,7.6588255,202.77,202.69,23.35186091]
[1731481144591,23.35186091,202.76,202.69,23.35186091]
[1731481144783,23.35186091,202.7,202.61,21.6505]
[1731481144999,23.35186091,202.66,202.6,8.5536]
[1731481145277,4.9351,202.63,202.6,8.5536]
[1731481146178,4.9351,202.63,202.56,21.6505]
[1731481147080,23.35186091,202.6,202.51,23.35186091]
[1731481147300,23.35186091,202.58,202.5,29.2942]
[1731481147593,23.35186091,202.52,202.41,35.70296091]
[1731481147882,23.35186091,202.6,202.41,12.3511]
[1731481147883,23.35186091,202.49,202.41,12.3511]
[1731481148062,23.35186091,202.47,202.39,8.0337]
[1731481148269,23.35186091,202.47,202.39,31.38556091]
[1731481148865,23.35186091,202.47,202.37,23.35186091]
[1731481149066,23.35186091,202.47,202.36,33.6145]
[1731481149067,23.35186091,202.45,202.36,21.2605]
[1731481149267,23.35186091,202.45,202.37,23.35186091]
[1731481149572,28.29146091,202.45,202.37,23.35186091]